Department Family,Entity,Date,Expense Area,Supplier,Voucher Number,Transation Description,Amount
HM Treasury,HM Treasury,02-Sep-2013,UKFI MANAGEMENT FEE,UK FINANCIAL INVESTMENTS LTD,106712,UKFI MANAGEMENT FEE SEPTEMBER 2013,150000
HM Treasury,HM Treasury,03-Sep-2013,Discretionary Change (Prev: Solutions Del),FUJITSU SERVICES LIMITED,106626,RELOCATION COSTS - RECHARGABLE TO ANOTHER GOVERNMENT DEPT,27405.16
HM Treasury,HM Treasury,03-Sep-2013,Public Spending,GOVERNMENT ACTUARY'S DEPT,106538,MONTHLY CHARGES FOR ACTURIAL ADVICE  PROVIDED TO THE PUBLIC SERVICE PENSIONS POLICY TEAM (JULY),43651
HM Treasury,HM Treasury,05-Sep-2013,Estates,EDF ENERGY,106671,MONTHLY ELECTRICITY CHARGES 1HGR,54701.5
HM Treasury,HM Treasury,05-Sep-2013,FLEX Services,FUJITSU SERVICES LIMITED,106631,HMT RESTRICTED SERVICE MONTHLY INVOICE CHARGE,922055.33
HM Treasury,HM Treasury,09-Sep-2013,Estates,DEPARTMENT OF ENERGY AND CLIMATE CHANGE,106668,CARBON REDUCTION COMMITMENT FOR HM TREASURY FOR 2013/14,36720
HM Treasury,HM Treasury,09-Sep-2013,Project OSCAR (inc DPI),IBM UK,106629,PROJECT OSCAR - HOSTING - AUGUST 2013' ,37149.6
HM Treasury,HM Treasury,09-Sep-2013,Financial Services,PRICEWATERHOUSECOOPERS,106726,HELP TO BUY SCHEME ASSISTANCE,88872
HM Treasury,DMO,11-Sep-2013,Consolidated Projects,BADENOCH & CLARK,106790,SPECIALIST CONTRACT STAFF,31626.14
HM Treasury,DMO,11-Sep-2013,Settlements,BANK OF ENGLAND,106787,BANKING CHARGES JUN 13,85661.5
HM Treasury,DMO,11-Sep-2013,Settlements,BANK OF ENGLAND,106785,BANKING CHARGES JUL 13,93849.55
HM Treasury,HM Treasury,11-Sep-2013,Finance Central,HOUSE OF COMMONS,104911,MARGINAL COSTS FOR 2012/13 PARLIAMENTARY COMMISSION ON BANKING STANDARDS - FULFILLING THE GOVERNMENTS COMMITMENTS TO MEET THE COSTS OF THE COMMISSION.,811910.4
HM Treasury,DMO,13-Sep-2013,Policy & Analysis,FIELD FISHER WATERHOUSE,106815,LEGAL SERVICES,26393.4
HM Treasury,HM Treasury,13-Sep-2013,Project OSCAR (inc DPI),IBM UK,106342,PROJECT OSCAR - MILESTONE DELIVERY,425952.84
HM Treasury,HM Treasury,13-Sep-2013,Equitable Life,NATIONAL SAVINGS AND INVESTMENTS,106710,IMPLEMENTATION COSTS FOR THE EQUITABLE LIFE PAYMENT SCHEME - JUNE 2013,414472.19
HM Treasury,HM Treasury,13-Sep-2013,Equitable Life,NATIONAL SAVINGS AND INVESTMENTS,106711,OPERATIONAL COSTS FOR THE EQUITABLE LIFE PAYMENT SCHEME - JUNE 2013,1019128
HM Treasury,HM Treasury,13-Sep-2013,Hmt Suspense,ROYAL MINT,106680,UK CIRCULATING COINS METAL COSTS,682527
HM Treasury,HM Treasury,13-Sep-2013,Hmt Suspense,ROYAL MINT,106680,UK CIRCULATING COINS MANUFACTURE COSTS,1629210.6
HM Treasury,HM Treasury,13-Sep-2013,IS Retained Services,TRUSTMARQUE SOLUTIONS,106667,ANNUAL SOFTWARE LICENCE,42844.2
HM Treasury,HM Treasury,16-Sep-2013,Estates,EXCHEQUER PARTNERSHIP PLC,106807,IT SERVICES,31153.5
HM Treasury,HM Treasury,16-Sep-2013,JWS PROJECTS - HMT & OGDs (Shared),FUJITSU SERVICES LIMITED,106584,ANNUAL SOFTWARE LICENCE,71911.2
HM Treasury,HM Treasury,16-Sep-2013,JWS PROJECTS - HMT & OGDs (Shared),FUJITSU SERVICES LIMITED,106584,ANNUAL SOFTWARE LICENCE,26011.2
HM Treasury,HM Treasury,16-Sep-2013,JWS PROJECTS - HMT & OGDs (Shared),FUJITSU SERVICES LIMITED,106584,ANNUAL SOFTWARE LICENCE,11392.44
HM Treasury,DMO,16-Sep-2013,Business Delivery,SS&C TECHNOLOGIES,106828,PROJECT MANAGEMENT SUPPORT FOR JULY 2013,33650.49
HM Treasury,DMO,16-Sep-2013,Consolidated Projects,SS&C TECHNOLOGIES,106828,PROJECT MANAGEMENT SUPPORT FOR JULY 2013,6678.15
HM Treasury,HM Treasury,18-Sep-2013,Public Spending,DELOITTE LLP,106862,CONSULTANCY COSTS - ,68305
HM Treasury,HM Treasury,18-Sep-2013,Hmt Suspense,EXCHEQUER PARTNERSHIP PLC,106773,MONTHLY UNITARY PAYMENT ,161338.45
HM Treasury,HM Treasury,18-Sep-2013,Estates,EXCHEQUER PARTNERSHIP PLC,106773,MONTHLY UNITARY PAYMENT ,510569.58
HM Treasury,HM Treasury,18-Sep-2013,Estates,EXCHEQUER PARTNERSHIP PLC,106773,MONTHLY UNITARY PAYMENT ,778254.27
HM Treasury,HM Treasury,18-Sep-2013,Estates,EXCHEQUER PARTNERSHIP PLC,106773,MONTHLY UNITARY PAYMENT ,317850.9
HM Treasury,DMO,18-Sep-2013,Facilities,JONES LANG LASALLE,106868,RENT AND SERVICE CHARGE,84828
HM Treasury,DMO,18-Sep-2013,Facilities,JONES LANG LASALLE,106868,RENT AND SERVICE CHARGE,288393.6
HM Treasury,HM Treasury,18-Sep-2013,Financial Services 1,THE TREASURY SOLICITOR,106835,LEGAL SERVICES/REPRESENTATION,28612.56
HM Treasury,HM Treasury,20-Sep-2013,Fiscal,ROYAL MINT,106834,RECURRING SERVICES - 3RD QUARTER 2013/14,99297.78
HM Treasury,HM Treasury,24-Sep-2013,JWS PROJECTS � OGDs Only,EXCHEQUER PARTNERSHIP PLC,106965,RELOCATION CHARGES - RECHARGABLE TO ANOTHER GOVERNMENT DEPT,28682.17
HM Treasury,HM Treasury,24-Sep-2013,FLEX Services,FUJITSU SERVICES LIMITED,106848,HMT CONFIDENTIAL SERVICE MONTHLY INVOICE CHARGE ,685843.69
HM Treasury,HM Treasury,24-Sep-2013,Public Spending,GOVERNMENT ACTUARY'S DEPT,106964,MONTHLY CHARGES FOR ACTURIAL ADVICE  PROVIDED TO THE PUBLIC SERVICE PENSIONS POLICY TEAM (AUGUST),50277.96
HM Treasury,HM Treasury,24-Sep-2013,HR Central Services,LINE COMMUNICATIONS,106518,ANNUAL SOFTWARE LICENCE,32286
HM Treasury,HM Treasury,26-Sep-2013,Estates,EXCHEQUER PARTNERSHIP PLC,106905,"MONTHLY POST, GOODS AND PORTERAGE SERVICES ",36086.77
HM Treasury,HM Treasury,26-Sep-2013,Estates,EXCHEQUER PARTNERSHIP PLC,106976,QUARTERLY WORKSTATION PAYMENT,366533.28
HM Treasury,HM Treasury,26-Sep-2013,Discretionary Change (Prev: Solutions Del),FUJITSU SERVICES LIMITED,106924,IT CONTRACTOR SERVICES,32959.8
HM Treasury,HM Treasury,26-Sep-2013,FLEX Services,FUJITSU SERVICES LIMITED,106969,HMT CONFIDENTIAL SERVICE MONTHLY INVOICE CHARGE ,720755.05
HM Treasury,DMO,26-Sep-2013,DMO Finance,HM REVENUE & CUSTOMS,106990,DMO PAYE TAX LIABILITY,21150.69
HM Treasury,HM Treasury,26-Sep-2013,Finance ,HM REVENUE & CUSTOMS,106990,HMT PAYE TAX LIABILITY,46487.33
HM Treasury,HM Treasury,26-Sep-2013,Project OSCAR (inc DPI),IBM UK,106900,PROJECT OSCAR - SUPPORT STAFF - SEPTEMBER 2013',31433.5
HM Treasury,HM Treasury,26-Sep-2013,Project OSCAR (inc DPI),IBM UK,106899,PROJECT OSCAR - HOSTING - SEPTEMBER 2013' ,37149.6
HM Treasury,HM Treasury,30-Sep-2013,Hmt Suspense,BARCLAYCARD COMMERCIAL ,106966,GPC CARD STATEMENT - AUGUST 2013,75200.75
HM Treasury,HM Treasury,30-Sep-2013,Hmt Suspense,BARCLAYCARD COMMERCIAL ,106980,LODGE CARD STATEMENT - AUGUST 2013,130879.3
HM Treasury,HM Treasury,30-Sep-2013,Hmt Suspense,EXCHEQUER PARTNERSHIP PLC,106954,WORKSPACE OPTIMISATION PROJECT,224455
HM Treasury,HM Treasury,30-Sep-2013,JWS PROJECTS - HMT & OGDs (Shared),FUJITSU SERVICES LIMITED,107000,SHAREPOINT COSTS,82548.91
